bitfinex/quotes_SOLUSD_20251013
["timestamp","ask_amount","ask_price","bid_price","bid_amount"]
[1760360374052,0.91,192.08,192.02,5.20779085]
[1760360374053,5.7791648,192.07,192.02,5.20779085]
[1760360374266,5.0691648,192.04,192.02,5.20779085]
[1760360374449,5.0691648,192.05,192.03,9.46]
[1760360374758,5.0691648,192.05,192.0,5.20811287]
[1760360374962,0.71,192.04,192.01,9.46]
[1760360375156,5.0691648,192.05,192.01,9.46]
[1760360375460,5.0691648,192.02,192.0,5.20811287]
[1760360375655,5.0691648,192.02,191.94,29.11134026]
[1760360375847,5.0691648,192.02,191.95,9.46]
[1760360376046,0.71,192.01,191.95,10.87647521]
[1760360376453,5.0691648,191.99,191.94,18.23486505]
[1760360376774,0.71,191.98,191.95,9.46]
[1760360377147,5.0691648,191.99,191.95,9.46]
[1760360377353,0.71,191.97,191.95,9.46]
[1760360377665,5.0691648,191.98,191.96,9.46]
[1760360378062,5.85849903,192.03,191.96,14.66935702]
[1760360378246,0.10372985,191.97,191.96,14.66935702]
[1760360380065,0.10372985,191.97,191.96,9.46]
[1760360380440,0.10372985,191.97,191.96,5.91941862]
[1760360380637,0.10372985,191.97,191.96,15.37941862]
[1760360381057,0.10372985,191.97,191.96,5.20941862]
[1760360381250,0.10372985,191.97,191.96,14.66941862]
[1760360383757,0.11188622,191.98,191.96,11.53647521]
[1760360383962,0.11188622,191.98,191.97,0.66]
[1760360384145,0.11188622,191.98,191.97,10.12]
[1760360384344,0.11188622,191.98,191.96,10.87647521]
[1760360384645,0.11188622,191.98,191.96,11.53647521]
[1760360384841,0.11188622,191.98,191.97,9.46]
[1760360385247,0.11188622,191.98,191.96,11.53647521]
[1760360385461,0.11188622,191.98,191.97,5.86914726]
[1760360385670,0.11188622,191.98,191.97,14.66914726]
[1760360386257,0.11188622,191.98,191.97,5.20914726]
[1760360386470,0.11188622,191.98,191.97,14.66914726]
[1760360386667,0.11188622,191.98,191.97,5.20914726]
[1760360387566,0.11188622,191.98,191.97,14.66914726]
[1760360387767,0.11188622,191.98,191.97,5.20914726]
[1760360388872,0.11188622,191.98,191.96,16.08589383]
[1760360389058,0.11188622,191.98,191.97,9.46]
[1760360389777,0.11188622,191.98,191.96,16.08589383]
[1760360390078,0.11188622,191.98,191.96,16.77589383]
[1760360390262,0.11188622,191.98,191.97,5.20914726]
[1760360390574,0.11188622,191.98,191.97,14.66914726]
[1760360390781,0.11188622,191.98,191.97,5.20914726]
[1760360391153,0.11188622,191.98,191.97,14.66914726]
[1760360391354,0.09843408,192.01,191.98,10.87647521]
[1760360391670,0.11212425,192.02,191.98,11.56647521]
[1760360391671,1e-08,192.02,191.98,11.56647521]
[1760360391975,1e-08,192.03,192.0,10.87647521]
[1760360392354,1e-08,192.03,192.02,10.87647521]
[1760360392578,1e-08,192.03,192.02,20.33647521]
[1760360392876,1e-08,192.03,192.02,0.69]
[1760360393089,1e-08,192.06,192.03,10.87647521]
[1760360393309,1e-08,192.09,192.05,10.87647521]
[1760360393577,1e-08,192.09,192.07,10.87647521]
[1760360393785,1e-08,192.09,192.06,10.87647521]
[1760360393987,1e-08,192.09,192.07,9.46]
[1760360394160,1e-08,192.09,192.07,0.69]
[1760360394358,1e-08,192.09,192.08,21.02647521]
[1760360394660,1e-08,192.09,192.08,11.56647521]
[1760360394860,1e-08,192.09,192.08,16.7726393]
[1760360395260,1e-08,192.09,192.08,26.2126393]
[1760360395462,1e-08,192.09,192.08,16.7726393]
[1760360396266,1e-08,192.09,192.08,26.2126393]
[1760360396471,1e-08,192.09,192.08,16.7726393]
[1760360396677,1e-08,192.09,192.08,26.2126393]
[1760360398895,1e-08,192.1,192.08,26.2126393]
[1760360399192,1e-08,192.1,192.09,9.44]
[1760360399386,0.1184647,192.14,192.09,15.33589307]
[1760360399589,0.7984647,192.14,192.1,10.87647521]
[1760360399892,0.7984647,192.14,192.09,28.35062574]
[1760360399893,5.0691648,192.12,192.09,5.20589307]
[1760360400093,5.0691648,192.1,192.09,5.20589307]
[1760360400296,5.0691648,192.1,191.98,0.69]
[1760360400297,5.7491648,192.1,191.98,0.69]
[1760360400478,5.0691648,192.06,191.96,5.0691648]
[1760360400683,0.68,192.05,191.97,10.13]
[1760360400892,0.68,192.05,191.96,20.8]
[1760360400893,0.68,192.05,191.98,26.04343788]
[1760360401093,0.1184647,192.14,192.0,10.87647521]
[1760360401396,1e-08,192.14,192.06,39.02347182]
[1760360401594,1e-08,192.15,192.1,10.87647521]
[1760360401813,1e-08,192.15,192.07,0.69]
[1760360402000,0.68,192.14,192.09,10.87647521]
[1760360402175,1e-08,192.15,192.1,10.13]
[1760360402375,1e-08,192.15,192.12,10.87647521]
[1760360402595,1e-08,192.15,192.14,10.87647521]
[1760360402874,1e-08,192.18,192.14,20.31647521]
[1760360403105,1e-08,192.18,192.16,10.87647521]
[1760360403323,0.68,192.31,192.21,10.87647521]
[1760360403481,2.71678405,192.34,192.26,20.8]
[1760360403792,0.84951935,192.45,192.31,20.8]
[1760360403999,1e-08,192.39,192.32,9.44]
[1760360404319,0.2,192.45,192.37,10.87647521]
[1760360404615,0.2,192.45,192.31,24.13402562]
[1760360404616,0.2,192.45,192.44,2.71893083]
[1760360404825,0.2,192.45,192.44,13.59540604]
[1760360404988,1e-08,192.45,192.44,2.71893083]
[1760360405184,0.68000001,192.45,192.44,2.71893083]
[1760360405490,0.68000001,192.45,192.44,21.80540604]
[1760360405695,0.2,192.52,192.45,10.87647521]
[1760360405916,0.2,192.52,192.46,9.5]
[1760360406231,18.38487293,192.47,192.44,1.42893083]
[1760360406522,19.99999999,192.45,192.44,1.42893083]
[1760360406706,5.0691648,192.45,192.44,1.42893083]
[1760360406893,20.8,192.4,192.28,2.08241143]
[1760360407217,20.8,192.32,192.29,9.54]
[1760360407406,5.0691648,192.33,192.25,9.54]
[1760360407588,5.0691648,192.3,192.2,0.69]
[1760360407793,5.0691648,192.31,192.22,5.20223049]
[1760360407986,0.6499584,192.32,192.21,9.56]
[1760360408399,20.8,192.24,192.21,9.56]
[1760360408694,0.65012742,192.27,192.18,9.56]
[1760360409098,0.65012742,192.27,192.09,20.8]
[1760360409099,0.64989081,192.34,192.19,10.25]
[1760360409292,5.0691648,192.34,192.21,10.87647521]
[1760360409510,5.0691648,192.34,192.19,30.36]
[1760360409511,20.8,192.35,192.22,15.45237228]
[1760360409695,5.0691648,192.35,192.23,32.36647521]
[1760360410024,5.84562201,192.46,192.25,10.87647521]
[1760360410325,0.2,192.47,192.33,10.87647521]
[1760360410499,5.0691648,192.38,192.26,21.49]
[1760360410694,5.0691648,192.36,192.27,21.14647521]
[1760360410903,0.64968814,192.4,192.29,10.87647521]
[1760360411108,0.84945186,192.47,192.31,10.87647521]
[1760360411342,5.0691648,192.42,192.32,0.69]
[1760360411499,5.0691648,192.4,192.33,9.6]
[1760360411830,21.44958686,192.43,192.34,9.6]
[1760360412033,21.44958686,192.43,192.32,0.69]
[1760360412209,0.64951935,192.45,192.35,9.6]
[1760360412395,5.0691648,192.41,192.35,9.6]
[1760360412598,5.0691648,192.38,192.36,9.6]
[1760360412800,18.38475167,192.47,192.36,9.6]
[1760360412801,5.0691648,192.37,192.36,9.6]
[1760360412999,20.8,192.4,192.23,18.20735576]
[1760360413000,0.64972191,192.39,192.35,9.6]
[1760360413201,5.0691648,192.38,192.35,9.6]
[1760360413401,5.0691648,192.36,192.26,5.92128991]
[1760360413626,20.8,192.33,192.21,0.72]
[1760360413828,5.0691648,192.37,192.23,10.87647521]
[1760360414133,5.0691648,192.4,192.29,10.87647521]
[1760360414425,5.0691648,192.42,192.31,10.87647521]
[1760360414606,5.0691648,192.41,192.32,0.72]
[1760360414800,5.0691648,192.43,192.33,10.87647521]
[1760360415011,5.0691648,192.4,192.34,10.34]
[1760360415238,5.0691648,192.37,192.34,0.72]
[1760360415543,0.64958686,192.43,192.35,10.34]
[1760360415710,20.8,192.42,192.36,10.36]
[1760360415922,38.66042297,192.5,192.37,9.64]
[1760360415923,5.0691648,192.4,192.37,9.64]
[1760360416225,18.18559699,192.46,192.38,9.64]
[1760360416226,5.0691648,192.41,192.38,9.64]
[1760360416420,0.64938438,192.49,192.39,0.72]
[1760360416721,5.0691648,192.45,192.39,0.72]
[1760360416931,5.0691648,192.46,192.39,0.72]
[1760360417334,2.71413206,192.53,192.4,10.87647521]
[1760360417644,5.0691648,192.5,192.41,44.89649809]
[1760360417936,5.0691648,192.5,192.42,9.64]
[1760360418124,0.2,192.52,192.43,10.87647521]
[1760360418329,0.09518769,192.45,192.44,9.64]
[1760360418644,0.10840984,192.46,192.44,21.23647521]
[1760360418805,0.10165179,192.48,192.45,11.59647521]
[1760360419005,0.10248128,192.49,192.45,11.59647521]
[1760360419229,0.30020541,192.52,192.47,10.87647521]
[1760360419415,1e-08,192.51,192.49,16.07155027]
[1760360419616,1e-08,192.51,192.5,11.59647521]
[1760360419938,1e-08,192.52,192.51,10.87647521]
[1760360420236,5.0691648,192.62,192.51,11.59647521]
[1760360420443,1.15884505,192.65,192.53,10.87647521]
[1760360420644,5.0691648,192.62,192.54,0.72]
[1760360421015,5.0691648,192.61,192.53,10.87647521]
[1760360421229,5.0691648,192.59,192.52,0.72]
[1760360421431,0.2,192.65,192.54,18.17804091]
[1760360421719,5.0691648,192.62,192.55,0.72]
[1760360421926,5.0691648,192.63,192.55,0.72]
[1760360422129,0.2,192.65,192.56,10.87647521]
[1760360422437,0.2,192.65,192.57,10.36]
[1760360422648,5.0691648,192.64,192.58,9.64]
[1760360423018,5.0691648,192.64,192.57,0.72]
[1760360423212,21.0,192.65,192.58,9.64]
[1760360423525,21.0,192.65,192.54,44.1466708]
[1760360423526,7.34607666,192.6,192.54,18.89804091]
[1760360423728,20.8,192.61,192.55,9.64]
[1760360424134,28.14607666,192.61,192.55,9.64]
[1760360424348,7.34607666,192.6,192.55,9.64]
[1760360424523,20.8,192.61,192.54,5.19372597]
[1760360424720,7.34607666,192.57,192.52,5.19426553]
[1760360424942,0.31,192.59,192.53,9.64]
[1760360425240,7.34607666,192.56,192.53,9.64]
[1760360425411,20.8,192.61,192.53,9.64]
[1760360425412,7.34607666,192.57,192.54,5.19372597]
[1760360425615,7.34607666,192.58,192.54,18.17804091]
[1760360426017,7.34607666,192.56,192.54,5.19372597]
[1760360426645,7.34607666,192.55,192.52,5.19419051]
[1760360426944,0.6490809,192.58,192.53,9.64]
[1760360427155,7.34607666,192.57,192.53,9.64]
[1760360427660,7.34607666,192.57,192.54,5.19372597]
[1760360427849,7.34607666,192.56,192.54,5.19372597]
[1760360428237,0.31,192.56,192.55,9.62]
[1760360428460,7.34607666,192.56,192.55,9.62]
[1760360428759,28.14607666,192.58,192.55,9.62]
[1760360429063,20.8,192.55,192.48,5.19534497]
[1760360429235,20.8,192.53,192.48,5.19534497]
[1760360429436,7.34607666,192.49,192.36,12.98741473]
[1760360429736,20.8,192.48,192.39,0.72]
[1760360429939,0.64928319,192.52,192.4,10.87647521]
[1760360429940,7.34607666,192.52,192.4,10.87647521]
[1760360430153,7.34607666,192.49,192.41,10.36]
[1760360430343,7.34607666,192.45,192.42,9.64]
[1760360430539,7.34607666,192.45,192.39,18.19220043]
[1760360430738,7.34607666,192.43,192.4,9.64]
[1760360431035,7.34607666,192.41,192.35,0.72]
[1760360431236,0.95938438,192.49,192.36,9.64]
[1760360431473,0.31,192.53,192.37,11.59647521]
[1760360431639,7.34607666,192.49,192.39,10.87647521]
[1760360431838,0.31,192.57,192.4,10.36]
[1760360432065,0.6491146,192.57,192.42,10.87647521]
[1760360432240,7.34607666,192.48,192.43,0.72]
[1760360432459,7.34607666,192.48,192.44,9.64]
[1760360432762,7.34607666,192.48,192.45,9.64]
[1760360432957,0.31,192.53,192.45,0.72]
[1760360433178,0.31,192.53,192.46,9.64]
[1760360433179,7.34607666,192.49,192.46,9.64]
[1760360433344,7.34607666,192.51,192.46,10.36]
[1760360433538,7.34607666,192.47,192.43,0.72]
[1760360433741,7.34607666,192.47,192.34,44.19257563]
[1760360433952,0.31,192.46,192.35,0.72]
[1760360434151,7.34607666,192.4,192.36,20.51647521]
[1760360434349,7.34607666,192.41,192.37,0.72]
[1760360434553,7.34607666,192.41,192.38,9.64]
[1760360434756,0.95935064,192.5,192.39,0.72]
[1760360434962,7.34607666,192.44,192.39,0.72]
[1760360435463,7.34607666,192.44,192.4,0.72]
[1760360435768,7.34607666,192.42,192.41,9.64]
[1760360436142,7.34607666,192.42,192.34,10.87647521]
[1760360436342,7.34607666,192.38,192.33,0.72]
[1760360436541,7.34607666,192.35,192.34,9.64]
[1760360436965,6.84607666,192.35,192.34,9.64]
[1760360437274,6.84607666,192.35,192.28,0.72]
[1760360437573,7.34607666,192.29,192.24,18.20597726]
[1760360437745,20.8,192.34,192.25,10.36]
[1760360437943,7.34607666,192.34,192.27,10.87647521]
[1760360438145,7.34607666,192.31,192.28,9.64]
[1760360438445,7.44619601,192.3,192.29,9.64]
[1760360438658,7.44619601,192.3,192.25,11.59647521]
[1760360438857,7.34607666,192.27,192.24,5.20183104]
[1760360439051,7.34607666,192.27,192.25,9.64]
[1760360439254,7.34607666,192.26,192.2,0.72]
[1760360439575,7.34607666,192.26,192.2,5.92281581]
[1760360439783,0.10011935,192.3,192.21,10.36]
[1760360439964,0.10011935,192.3,192.22,10.87647521]
[1760360440277,0.10011935,192.3,192.23,9.64]
[1760360440479,0.10011935,192.3,192.23,0.72]
[1760360440680,0.10011935,192.3,192.25,10.87647521]
[1760360440896,0.09911139,192.31,192.29,20.8]
[1760360441086,0.09764721,192.32,192.29,20.8]
[1760360441254,0.09764721,192.32,192.3,10.38]
[1760360441456,0.10331812,192.33,192.32,10.87647521]
[1760360441659,0.09594593,192.34,192.33,16.07587207]
[1760360441987,0.09594593,192.34,192.33,16.79587207]
[1760360442362,0.09594593,192.34,192.29,11.59647521]
[1760360442684,0.09594593,192.34,192.29,11.58647521]
[1760360442900,0.09594593,192.34,192.3,0.71]
[1760360443063,0.09594593,192.34,192.31,0.71]
[1760360443468,0.09594593,192.34,192.32,0.71]
[1760360443670,0.09594593,192.34,192.33,15.56939686]
[1760360443869,0.11242885,192.36,192.34,10.87647521]
[1760360444075,0.11320481,192.37,192.34,11.58647521]
[1760360444076,1e-08,192.37,192.34,11.58647521]
[1760360444364,0.64928319,192.52,192.36,10.87647521]
[1760360444597,0.64928319,192.52,192.35,0.71]
[1760360444598,7.34607666,192.48,192.38,10.87647521]
[1760360444770,7.34607666,192.49,192.4,10.87647521]
[1760360445082,13.63227349,192.56,192.41,0.71]
[1760360445083,7.34607666,192.48,192.41,0.71]
[1760360445479,7.34607666,192.52,192.43,0.71]
[1760360445788,7.34607666,192.5,192.44,18.18748699]
[1760360445991,7.34607666,192.49,192.44,27.84748699]
[1760360446193,7.34607666,192.49,192.45,9.66]
[1760360446377,7.34607666,192.48,192.4,0.72]
[1760360446691,7.34607666,192.48,192.41,9.66]
[1760360446692,7.34607666,192.45,192.41,9.66]
[1760360447070,7.34607666,192.45,192.42,9.66]
[1760360447393,7.34607666,192.43,192.37,5.19831574]
[1760360447581,7.34607666,192.4,192.37,5.19831574]
[1760360447889,20.8,192.46,192.38,10.38]
[1760360448092,7.34607666,192.44,192.39,9.66]
[1760360448288,0.6,192.54,192.4,10.38]
[1760360448587,7.34607666,192.52,192.42,10.87647521]
[1760360448792,7.34607666,192.54,192.44,10.87647521]
[1760360449003,0.6,192.59,192.46,10.87647521]
[1760360449207,7.34607666,192.57,192.46,10.87647521]
[1760360449375,7.34607666,192.57,192.48,10.87647521]
[1760360449573,7.34607666,192.57,192.49,10.38]
[1760360449805,7.34607666,192.57,192.5,18.18181817]
[1760360450088,20.8,192.61,192.51,11.59647521]
[1760360450290,7.34607666,192.58,192.51,11.59647521]
[1760360450497,7.34607666,192.56,192.52,9.66]
[1760360450697,0.6,192.61,192.52,10.38]
[1760360450884,20.8,192.61,192.52,10.38]
[1760360451081,7.34607666,192.58,192.52,10.38]
[1760360451596,7.34607666,192.57,192.52,9.66]
[1760360451899,0.64901349,192.6,192.53,9.66]
[1760360451900,20.8,192.55,192.53,9.66]
[1760360452206,7.34607666,192.54,192.47,0.72]
[1760360452411,7.34607666,192.52,192.46,10.87647521]
[1760360452573,7.34607666,192.5,192.47,9.66]
[1760360452772,20.8,192.52,192.43,5.9166949]
[1760360453016,7.34607666,192.49,192.43,0.72]
[1760360453194,7.34607666,192.49,192.44,9.66]
[1760360453195,7.34607666,192.47,192.44,9.66]
[1760360453494,20.8,192.49,192.45,9.66]
[1760360453804,7.34607666,192.47,192.45,9.66]
[1760360454094,7.34607666,192.46,192.44,5.19627461]
[1760360454294,7.34607666,192.45,192.42,5.19696497]
[1760360454600,7.34607666,192.43,192.4,5.19750519]
[1760360454786,7.34607666,192.41,192.4,5.19750519]
[1760360455179,7.34607666,192.41,192.4,14.85750519]
[1760360455374,7.34607666,192.41,192.23,19.99999999]
[1760360455375,7.94607666,192.41,192.34,5.19912654]
[1760360455593,7.34607666,192.37,192.35,9.66]
[1760360455882,7.34607666,192.37,192.35,14.85885009]
[1760360456184,7.34607666,192.38,192.36,9.66]
[1760360456395,0.64958686,192.43,192.36,9.66]
[1760360456396,21.44958686,192.43,192.36,9.66]
[1760360456591,7.34607666,192.39,192.36,9.66]
[1760360456814,0.64958686,192.43,192.37,10.36]
[1760360456985,7.34607666,192.44,192.37,10.36]
[1760360457178,0.64945186,192.47,192.37,0.72]
[1760360457382,7.34607666,192.4,192.38,9.66]
[1760360457679,29.39579857,192.39,192.32,5.19939742]
[1760360457882,7.34607666,192.35,192.31,18.19950355]
[1760360458181,22.04972191,192.39,192.31,18.19950355]
[1760360458374,0.10932523,192.33,192.32,9.66]
[1760360458577,7.45540189,192.33,192.2,16.07938884]
[1760360458883,7.45540189,192.33,192.27,0.72]
[1760360459080,0.10932523,192.33,192.28,20.51647521]
[1760360459286,0.10932523,192.33,192.29,0.72]
[1760360459496,0.10932523,192.33,192.28,20.51647521]
[1760360459709,0.10932523,192.33,192.29,0.72]
[1760360460001,7.34607666,192.32,192.29,5.20046297]
[1760360460178,0.10932523,192.33,192.3,10.36]
[1760360460377,0.1038926,192.35,192.31,10.87647521]
[1760360460579,1e-08,192.36,192.35,10.87647521]
[1760360460778,0.09859936,192.41,192.34,20.8]
[1760360460996,7.4503634,192.4,192.35,10.38]
[1760360461201,7.4503634,192.4,192.35,0.72]
[1760360461388,7.34607666,192.37,192.36,9.66]
[1760360461791,7.34607666,192.38,192.36,14.85850251]
[1760360462112,7.34607666,192.37,192.34,5.19891907]
[1760360462291,7.34607666,192.35,192.29,5.92043591]
[1760360462491,7.34607666,192.31,192.29,5.20043591]
[1760360462819,7.34607666,192.3,192.29,5.20043591]
[1760360462981,7.34607666,192.31,192.27,5.20087643]
[1760360463180,7.34607666,192.31,192.25,0.72]
[1760360463181,21.44975569,192.38,192.28,10.38]
[1760360463405,7.34607666,192.36,192.28,10.38]
[1760360463584,0.64975569,192.38,192.29,10.87647521]
[1760360463785,7.34607666,192.36,192.31,18.1997816]
[1760360464001,7.34607666,192.36,192.32,9.66]
[1760360464197,0.09727595,192.39,192.33,0.72]
[1760360464405,7.34607666,192.36,192.33,9.66]
[1760360464593,7.34607666,192.34,192.31,5.1999376]
[1760360464788,0.71,192.36,192.31,5.1999376]
[1760360464789,7.34607666,192.33,192.32,9.66]
[1760360465390,0.09727595,192.39,192.32,0.72]
[1760360465884,0.09727595,192.39,192.33,14.85939686]
[1760360466201,0.09727595,192.39,192.34,10.38]
[1760360466509,7.44335261,192.39,192.35,9.66]
[1760360466802,7.34607666,192.36,192.26,0.72]
[1760360467008,7.34607666,192.33,192.27,9.66]
[1760360467305,7.34607666,192.35,192.28,10.38]
[1760360467496,20.8,192.36,192.28,0.72]
[1760360467707,7.34607666,192.32,192.26,18.20426555]
[1760360467996,7.34607666,192.29,192.27,9.66]
[1760360468205,7.34607666,192.29,192.28,9.66]
[1760360468606,21.4499246,192.33,192.28,9.66]
[1760360468784,7.34607666,192.35,192.29,10.38]
[1760360469102,7.34607666,192.34,192.29,10.38]
[1760360469301,7.34607666,192.31,192.3,9.66]
[1760360469526,0.74699786,192.39,192.3,10.38]
[1760360469690,0.09727595,192.39,192.31,11.59647521]
[1760360469890,0.09727595,192.39,192.26,65.01071514]
[1760360469891,7.34607666,192.37,192.32,18.91883527]
[1760360470099,0.74699786,192.39,192.32,18.91883527]
[1760360470100,0.74699786,192.39,192.32,18.19883527]
[1760360470286,7.34607666,192.38,192.33,10.4]
[1760360470609,7.34607666,192.35,192.31,5.19992707]
[1760360470924,0.09727595,192.39,192.32,10.4]
[1760360471212,7.34607666,192.37,192.33,9.68]
[1760360471519,7.34607666,192.36,192.33,9.68]
[1760360471702,7.34607666,192.37,192.33,9.68]
[1760360471900,7.34607666,192.35,192.33,9.68]
[1760360472423,7.34607666,192.36,192.33,14.87928251]
[1760360472592,7.34607666,192.34,192.33,5.19928251]
[1760360472907,7.34607666,192.34,192.33,9.68]
[1760360473495,28.83607666,192.34,192.28,5.20062644]
[1760360473697,7.34607666,192.29,192.18,10.87647521]
[1760360473898,20.8,192.34,192.24,18.20640865]
[1760360474098,7.34607666,192.33,192.25,10.39]
[1760360474415,0.64975569,192.38,192.27,10.87647521]
[1760360474605,7.34607666,192.35,192.28,0.71]
[1760360474807,7.34607666,192.34,192.28,0.71]
[1760360475010,7.34607666,192.31,192.28,0.71]
[1760360475183,1.33982324,192.36,192.25,0.71]
[1760360475383,7.34607666,192.28,192.24,18.20640865]
[1760360475607,7.34607666,192.29,192.25,0.71]
[1760360475812,7.34607666,192.28,192.25,10.39]
[1760360476007,7.34607666,192.28,192.26,14.88128991]
[1760360476383,0.6499246,192.33,192.26,18.2045147]
[1760360476615,7.34607666,192.31,192.27,10.37]
[1760360476811,7.34607666,192.31,192.28,0.71]
[1760360477017,7.34607666,192.32,192.28,0.71]
[1760360477392,7.34607666,192.29,192.26,5.20128991]
[1760360477609,7.34607666,192.27,192.24,5.20160885]
[1760360477787,7.34607666,192.25,192.22,5.20237228]
[1760360477995,7.34607666,192.24,192.23,14.88210164]
[1760360478393,0.10043025,192.24,192.23,14.88210164]
[1760360478604,0.10043025,192.24,192.2,5.91264896]
[1760360478901,0.10043025,192.24,192.21,0.71]
[1760360479099,0.10043025,192.24,192.22,10.37]
[1760360479302,0.10043025,192.24,192.23,9.66]
[1760360479815,0.10043025,192.24,192.22,0.71]
[1760360480007,0.10043025,192.24,192.23,9.66]
[1760360480217,7.44650691,192.24,192.21,5.20264294]
[1760360480406,7.34607666,192.22,192.18,5.20345509]
[1760360480598,7.34607666,192.2,192.19,9.66]
[1760360481303,7.34607666,192.22,192.19,9.66]
[1760360481511,7.44650691,192.24,192.2,0.71]
[1760360481703,7.34607666,192.22,192.21,9.66]
[1760360482218,7.34607666,192.22,192.17,13.10931466]
[1760360482407,7.34607666,192.21,192.18,14.86320895]
[1760360482605,7.34607666,192.2,192.18,14.86320895]
[1760360482801,7.34607666,192.22,192.18,28.58184668]
[1760360483013,7.34607666,192.22,192.18,27.87184668]
[1760360483215,7.34607666,192.21,192.18,27.87184668]
[1760360483421,7.34607666,192.22,192.18,18.92184668]
[1760360483624,7.34607666,192.22,192.19,9.66]
[1760360483916,7.34607666,192.2,192.19,9.66]
[1760360484132,8.03607666,192.2,192.17,0.1]
[1760360484298,28.14607666,192.18,192.17,0.1]
[1760360484699,28.83607666,192.18,192.17,0.1]
[1760360485203,0.65039804,192.19,192.17,0.1]
[1760360485399,0.65039804,192.19,192.17,9.76]
[1760360485602,20.8,192.22,192.18,0.71]
[1760360485804,5.05830115,192.2,192.19,9.66]
[1760360486397,5.05830115,192.2,192.18,5.20339564]
[1760360486605,0.65033036,192.21,192.19,9.66]
[1760360486814,5.05830115,192.2,192.18,5.20339564]
[1760360487012,5.05830115,192.19,192.18,5.20339564]
[1760360487217,5.05830115,192.19,192.18,9.66]
[1760360487930,5.74830115,192.19,192.18,9.66]
[1760360488303,10.95159622,192.19,192.17,9.76]
[1760360488610,21.4503642,192.2,192.17,9.76]
[1760360488611,0.65043188,192.18,192.17,9.76]
[1760360488937,5.05830115,192.21,192.17,15.67372586]
[1760360489108,20.8,192.21,192.17,15.67372586]
[1760360489307,5.1587314,192.24,192.18,0.71]
[1760360489503,5.05830115,192.23,192.18,0.71]
[1760360489905,5.05830115,192.23,192.19,10.37]
[1760360490332,5.05830115,192.23,192.2,5.91291363]
[1760360490509,5.80896028,192.24,192.2,5.91291363]
[1760360490705,5.05830115,192.23,192.21,9.66]
[1760360491019,5.05830115,192.22,192.21,9.66]
[1760360491220,25.85830115,192.22,192.17,0.1]
[1760360491413,5.05830115,192.19,192.18,9.66]
[1760360491818,5.05830115,192.19,192.17,0.1]
[1760360492033,6.39873303,192.18,192.17,0.1]
[1760360492326,0.65043188,192.18,192.17,0.1]
[1760360492526,10.91218812,192.18,192.17,0.1]
[1760360492841,11.60218812,192.18,192.14,9.66]
[1760360493039,1.34043188,192.18,192.14,9.66]
[1760360493336,1.34043188,192.18,192.1,0.71]
[1760360493337,5.05830115,192.15,192.1,0.71]
[1760360493502,5.05830115,192.13,192.11,9.66]
[1760360493702,5.05830115,192.14,192.11,9.66]
[1760360493903,5.05830115,192.17,192.12,0.71]
[1760360494109,20.8,192.18,192.13,0.71]
[1760360494307,20.8,192.18,192.14,14.86453835]
[1760360494524,0.65029653,192.22,192.15,0.71]
[1760360494716,5.05830115,192.2,192.15,10.37]
[1760360495033,5.05830115,192.19,192.16,0.71]
[1760360495722,20.8,192.2,192.16,0.71]
[1760360495943,0.10043025,192.24,192.17,0.71]
[1760360496137,5.05830115,192.23,192.18,9.66]
[1760360496308,0.10043025,192.24,192.19,18.92114521]
[1760360496703,0.10043025,192.24,192.2,0.71]
[1760360496912,0.09947071,192.25,192.2,0.71]
[1760360497118,0.09947071,192.25,192.21,9.66]
[1760360497430,0.09947071,192.25,192.22,0.71]
[1760360498304,0.09947071,192.25,192.22,18.91830298]
[1760360498305,0.09746154,192.24,192.22,18.91830298]
[1760360498504,0.20236944,192.25,192.23,11.58647521]
[1760360498726,0.20236944,192.25,192.24,9.66]
[1760360498910,0.2057675,192.26,192.24,10.37]
[1760360499112,1e-08,192.26,192.25,0.71]
[1760360499331,0.19826006,192.28,192.25,0.71]
[1760360499549,1e-08,192.31,192.3,10.87647521]
[1760360499714,1e-08,192.33,192.3,10.37]
[1760360499908,5.70785425,192.44,192.32,31.67647521]